Workbook

Sheet Passage & Temp Hourly Data
A1: Date | B1: Start Time | C1: End Time | D1: Unit Priority | E1: Ladder Exit | F1: Count Period | G1: Chinook adult | I1: Chinook jack | K1: Steelhead clipped | M1: Steelhead wild | O1: Sockeye
E2: Temp (°F) | G2: Up | H2: Down | I2: Up | J2: Down | K2: Up | L2: Down | M2: Up | N2: Down | O2: Up | P2: Down
A3: 2013-07-22 | B3: 05:00:00 | C3: 06:00:00 | D3: FPP Unit 2 | E3: 73.256 | F3: Day
A4: 2013-07-22 | B4: 06:00:00 | C4: 07:00:00 | D4: FPP Unit 2 | E4: 73.688 | F4: Day
A5: 2013-07-22 | B5: 07:00:00 | C5: 08:00:00 | D5: FPP Unit 2 | E5: 73.861 | F5: Day
A6: 2013-07-22 | B6: 08:00:00 | C6: 09:00:00 | D6: FPP Unit 2 | E6: 74.034 | F6: Day
A7: 2013-07-22 | B7: 09:00:00 | C7: 10:00:00 | D7: FPP Unit 2 | E7: 74.034 | F7: Day
A8: 2013-07-22 | B8: 10:00:00 | C8: 11:00:00 | D8: FPP Unit 2 | E8: 75.029 | F8: Day
A9: 2013-07-22 | B9: 11:00:00 | C9: 12:00:00 | D9: FPP Unit 2 | E9: 75.074 | F9: Day
A10: 2013-07-22 | B10: 12:00:00 | C10: 13:00:00 | D10: FPP Unit 2 | E10: 75.42 | F10: Day
A11: 2013-07-22 | B11: Sum 0500-1300 | G11: n/a | I11: n/a | K11: n/a | M11: n/a | O11: n/a
A12: 2013-07-22 | B12: 13:00:00 | C12: 14:00:00 | D12: FPP Unit 2 | E12: 75.074 | F12: Day
A13: 2013-07-22 | B13: 14:00:00 | C13: 15:00:00 | D13: FPP Unit 2 | E13: 74.813 | F13: Day
A14: 2013-07-22 | B14: 15:00:00 | C14: 16:00:00 | D14: FPP Unit 2 | E14: 74.511 | F14: Day
A15: 2013-07-22 | B15: 16:00:00 | C15: 17:00:00 | D15: FPP Unit 2 | E15: 75.16 | F15: Day
A16: 2013-07-22 | B16: 17:00:00 | C16: 18:00:00 | D16: Unit 1 | E16: 75.204 | F16: Day
A17: 2013-07-22 | B17: 18:00:00 | C17: 19:00:00 | D17: Unit 1 | E17: 74.12 | F17: Day
A18: 2013-07-22 | B18: 19:00:00 | C18: 20:00:00 | D18: Unit 1 | E18: 73.342 | F18: Day
A19: 2013-07-22 | B19: 20:00:00 | C19: 21:00:00 | D19: Unit 1 | E19: 73.083 | F19: Day
A20: 2013-07-22 | B20: Sum 1300-2100 | G20: n/a | I20: n/a | K20: n/a | M20: n/a | O20: n/a
A21: 2013-07-22 | B21: Day Total (FPC) = Sum 0500-2100 expanded by 1.2 | G21: 20 | I21: 11 | K21: 16 | M21: 10 | O21: 6
A22: 2013-07-22 | B22: 21:00:00 | C22: 22:00:00 | D22: Unit 1 | E22: 72.307 | F22: Night Video
A23: 2013-07-22 | B23: 22:00:00 | C23: 23:00:00 | D23: Unit 1 | E23: 72.264 | F23: Night Video
A24: 2013-07-22 | B24: 23:00:00 | C24: 1 | D24: Unit 1 | E24: 72.912 | F24: Night Video
A25: 2013-07-23 | B25: 1 | C25: 1.041666667 | D25: Unit 1 | E25: 72.394 | F25: Night Video
A26: 2013-07-23 | B26: 1.041666667 | C26: 1.083333333 | D26: Unit 1 | E26: 71.834 | F26: Night Video
A27: 2013-07-23 | B27: 1.083333333 | C27: 1.125 | D27: Unit 1 | E27: 72.178 | F27: Night Video
A28: 2013-07-23 | B28: 1.125 | C28: 1.166666667 | D28: Unit 1 | E28: 72.48 | F28: Night Video
A29: 2013-07-23 | B29: 1.166666667 | C29: 1.208333333 | D29: Unit 1 | E29: 72.48 | F29: Night Video
A30: 2013-07-23 | B30: Sum Night | G30: n/a | I30: n/a | K30: n/a | M30: n/a | O30: n/a
A31: 2013-07-23 | B31: 05:00:00 | C31: 06:00:00 | D31: Unit 1 | E31: 72.567 | F31: Day | G31: 8 | H31: 0 | I31: 6 | J31: 0 | K31: 0 | L31: 0 | M31: 0 | N31: 0 | O31: 0 | P31: 0
A32: 2013-07-23 | B32: 06:00:00 | C32: 07:00:00 | D32: Unit 1 | E32: 72.826 | F32: Day | G32: 20 | H32: 17 | I32: 12 | J32: 9 | K32: 1 | L32: 1 | M32: 1 | N32: 0 | O32: 0 | P32: 0
A33: 2013-07-23 | B33: 07:00:00 | C33: 08:00:00 | D33: Unit 1 | E33: 72.955 | F33: Day | G33: 29 | H33: 24 | I33: 33 | J33: 14 | K33: 7 | L33: 1 | M33: 3 | N33: 1 | O33: 1 | P33: 0
A34: 2013-07-23 | B34: 08:00:00 | C34: 09:00:00 | D34: FPP Unit 2 | E34: 73.126 | F34: Day | G34: 17 | H34: 20 | I34: 23 | J34: 28 | K34: 2 | L34: 1 | M34: 1 | N34: 0 | O34: 0 | P34: 0
A35: 2013-07-23 | B35: 09:00:00 | C35: 10:00:00 | D35: FPP Unit 2 | E35: 73.299 | F35: Day | G35: 4 | H35: 5 | I35: 1 | J35: 7 | K35: 1 | L35: 3 | M35: 1 | N35: 1 | O35: 0 | P35: 0
A36: 2013-07-23 | B36: 10:00:00 | C36: 11:00:00 | D36: FPP Unit 2 | E36: 73.818 | F36: Day | G36: 7 | H36: 14 | I36: 2 | J36: 0 | K36: 2 | L36: 0 | M36: 1 | N36: 1 | O36: 0 | P36: 0
A37: 2013-07-23 | B37: 11:00:00 | C37: 12:00:00 | D37: FPP Unit 2 | E37: 74.25 | F37: Day | G37: 2 | H37: 5 | I37: 0 | J37: 0 | K37: 0 | L37: 1 | M37: 0 | N37: 0 | O37: 0 | P37: 1
A38: 2013-07-23 | B38: 12:00:00 | C38: 13:00:00 | D38: FPP Unit 2 | E38: 74.338 | F38: Day | G38: 5 | H38: 5 | I38: 0 | J38: 2 | K38: 6 | L38: 2 | M38: 2 | N38: 0 | O38: 1 | P38: 0
A39: 2013-07-23 | B39: Sum 0500-1300 | G39: 2 | I39: 17 | K39: 10 | M39: 6 | O39: 1
A40: 2013-07-23 | B40: 13:00:00 | C40: 14:00:00 | D40: FPP Unit 2 | E40: 74.295 | F40: Day
A41: 2013-07-23 | B41: 14:00:00 | C41: 15:00:00 | D41: FPP Unit 2 | E41: 73.861 | F41: Day
A42: 2013-07-23 | B42: 15:00:00 | C42: 16:00:00 | D42: FPP Unit 2 | E42: 73.947 | F42: Day
A43: 2013-07-23 | B43: 16:00:00 | C43: 17:00:00 | D43: FPP Unit 2 | E43: 74.077 | F43: Day
A44: 2013-07-23 | B44: 17:00:00 | C44: 18:00:00 | D44: FPP Unit 2 | E44: 75.117 | F44: Day
A45: 2013-07-23 | B45: 18:00:00 | C45: 19:00:00 | D45: FPP Unit 2 | E45: 75.16 | F45: Day
A46: 2013-07-23 | B46: 19:00:00 | C46: 20:00:00 | D46: Spill ≤ TDG cap | E46: 75.767 | F46: Day
A47: 2013-07-23 | B47: 20:00:00 | C47: 21:00:00 | D47: Spill ≤ TDG cap | E47: 75.594 | F47: Day
A48: 2013-07-23 | B48: Sum 1300-2100 | G48: n/a | I48: n/a | K48: n/a | M48: n/a | O48: n/a
A49: 2013-07-23 | B49: Day Total (FPC) = Sum 0500-2100 expanded by 1.2 | G49: 0 | I49: 22 | K49: 19 | M49: 7 | O49: 2
A50: 2013-07-23 | B50: 21:00:00 | C50: 22:00:00 | D50: Spill ≤ TDG cap | E50: 75.463 | F50: Night Video | G50: 0 | H50: 1 | I50: 0 | J50: 0 | K50: 0 | L50: 0 | M50: 0 | N50: 0 | O50: 0 | P50: 0
A51: 2013-07-23 | B51: 22:00:00 | C51: 23:00:00 | D51: Spill ≤ TDG cap | E51: 75.16 | F51: Night Video | G51: 0 | H51: 0 | I51: 0 | J51: 0 | K51: 0 | L51: 0 | M51: 0 | N51: 0 | O51: 0 | P51: 0
A52: 2013-07-23 | B52: 23:00:00 | C52: 1 | D52: Spill ≤ TDG cap | E52: 74.899 | F52: Night Video | G52: 0 | H52: 0 | I52: 0 | J52: 0 | K52: 0 | L52: 0 | M52: 0 | N52: 0 | O52: 0 | P52: 0
A53: 2013-07-24 | B53: 1 | C53: 1.041666667 | D53: Spill ≤ TDG cap | E53: 74.899 | F53: Night Video | G53: 0 | H53: 0 | I53: 0 | J53: 0 | K53: 0 | L53: 0 | M53: 1 | N53: 0 | O53: 0 | P53: 0
A54: 2013-07-24 | B54: 1.041666667 | C54: 1.083333333 | D54: Spill ≤ TDG cap | E54: 75.074 | F54: Night Video | G54: 0 | H54: 0 | I54: 0 | J54: 0 | K54: 0 | L54: 0 | M54: 0 | N54: 0 | O54: 0 | P54: 0
A55: 2013-07-24 | B55: 1.083333333 | C55: 1.125 | D55: Spill ≤ TDG cap | E55: 75.247 | F55: Night Video | G55: 0 | H55: 1 | I55: 0 | J55: 0 | K55: 0 | L55: 0 | M55: 0 | N55: 0 | O55: 0 | P55: 0
A56: 2013-07-24 | B56: 1.125 | C56: 1.166666667 | D56: Spill ≤ TDG cap | E56: 75.551 | F56: Night Video | G56: 0 | H56: 0 | I56: 1 | J56: 1 | K56: 0 | L56: 0 | M56: 0 | N56: 0 | O56: 0 | P56: 0
A57: 2013-07-24 | B57: 1.166666667 | C57: 1.208333333 | D57: Spill ≤ TDG cap | E57: 75.16 | F57: Night Video | G57: 0 | H57: 0 | I57: 1 | J57: 0 | K57: 0 | L57: 0 | M57: 0 | N57: 0 | O57: 0 | P57: 0
A58: 2013-07-24 | B58: Sum Night | G58: -2 | I58: 1 | K58: 0 | M58: 1 | O58: 0
A59: 2013-07-24 | B59: 05:00:00 | C59: 06:00:00 | D59: Spill ≤ TDG cap | E59: 74.64 | F59: Day | G59: 2 | H59: 2 | I59: 1 | J59: 2 | K59: 0 | L59: 0 | M59: 0 | N59: 0 | O59: 0 | P59: 0
A60: 2013-07-24 | B60: 06:00:00 | C60: 07:00:00 | D60: Unit 1 | E60: 75.117 | F60: Day | G60: 1 | H60: 0 | I60: 1 | J60: 0 | K60: 1 | L60: 0 | M60: 3 | N60: 0 | O60: 0 | P60: 0
A61: 2013-07-24 | B61: 07:00:00 | C61: 08:00:00 | D61: Unit 1 | E61: 74.077 | F61: Day | G61: 2 | H61: 0 | I61: 2 | J61: 1 | K61: 2 | L61: 0 | M61: 2 | N61: 1 | O61: 0 | P61: 0
A62: 2013-07-24 | B62: 08:00:00 | C62: 09:00:00 | D62: Unit 1 | E62: 74.727 | F62: Day | G62: 6 | H62: 6 | I62: 5 | J62: 4 | K62: 2 | L62: 0 | M62: 0 | N62: 2 | O62: 0 | P62: 0
A63: 2013-07-24 | B63: 09:00:00 | C63: 10:00:00 | D63: Unit 1 | E63: 75.204 | F63: Day | G63: 7 | H63: 10 | I63: 9 | J63: 4 | K63: 2 | L63: 4 | M63: 2 | N63: 2 | O63: 0 | P63: 1
A64: 2013-07-24 | B64: 10:00:00 | C64: 11:00:00 | D64: Unit 1 | E64: 75.333 | F64: Day | G64: 2 | H64: 1 | I64: 2 | J64: 2 | K64: 2 | L64: 1 | M64: 0 | N64: 0 | O64: 0 | P64: 0
A65: 2013-07-24 | B65: 11:00:00 | C65: 12:00:00 | D65: Unit 1 | E65: 75.376 | F65: Day | G65: 19 | H65: 10 | I65: 8 | J65: 8 | K65: 0 | L65: 0 | M65: 2 | N65: 0 | O65: 0 | P65: 0
A66: 2013-07-24 | B66: 12:00:00 | C66: 13:00:00 | D66: Unit 1 | E66: 74.8 | F66: Day | G66: 3 | H66: 5 | I66: 0 | J66: 0 | K66: 1 | L66: 2 | M66: 1 | N66: 0 | O66: 0 | P66: 0
A67: 2013-07-24 | B67: Sum 0500-1300 | G67: 8 | I67: 7 | K67: 3 | M67: 5 | O67: -1
A68: 2013-07-24 | B68: 13:00:00 | C68: 14:00:00 | D68: Unit 1 | E68: 74.943 | F68: Day
A69: 2013-07-24 | B69: 14:00:00 | C69: 15:00:00 | D69: Unit 1 | E69: 75.333 | F69: Day
A70: 2013-07-24 | B70: 15:00:00 | C70: 16:00:00 | D70: Unit 1 | E70: 75.594 | F70: Day
A71: 2013-07-24 | B71: 16:00:00 | C71: 17:00:00 | D71: Unit 1 | E71: 75.376 | F71: Day
A72: 2013-07-24 | B72: 17:00:00 | C72: 18:00:00 | D72: Unit 1 | E72: 74.986 | F72: Day
A73: 2013-07-24 | B73: 18:00:00 | C73: 19:00:00 | D73: Spill ≤ TDG cap | E73: 75.29 | F73: Day
A74: 2013-07-24 | B74: 19:00:00 | C74: 20:00:00 | D74: Spill ≤ TDG cap | E74: 74.554 | F74: Day
A75: 2013-07-24 | B75: 20:00:00 | C75: 21:00:00 | D75: Spill ≤ TDG cap | E75: 74.034 | F75: Day
A76: 2013-07-24 | B76: Sum 1300-2100 | G76: n/a | I76: n/a | K76: n/a | M76: n/a | O76: n/a
A77: 2013-07-24 | B77: Day Total (FPC) = Sum 0500-2100 expanded by 1.2 | G77: 11 | I77: 14 | K77: 17 | M77: 10 | O77: 2
A78: 2013-07-24 | B78: 21:00:00 | C78: 22:00:00 | D78: Spill ≤ TDG cap | E78: 74.163 | F78: Night Video | G78: 0 | H78: 0 | I78: 0 | J78: 0 | K78: 0 | L78: 0 | M78: 0 | N78: 0 | O78: 0 | P78: 1
A79: 2013-07-24 | B79: 22:00:00 | C79: 23:00:00 | D79: Spill ≤ TDG cap | E79: 73.947 | F79: Night Video | G79: 0 | H79: 0 | I79: 0 | J79: 0 | K79: 0 | L79: 0 | M79: 0 | N79: 0 | O79: 0 | P79: 0
A80: 2013-07-24 | B80: 23:00:00 | C80: 1 | D80: Spill ≤ TDG cap | E80: 74.077 | F80: Night Video | G80: 0 | H80: 0 | I80: 0 | J80: 0 | K80: 0 | L80: 0 | M80: 0 | N80: 0 | O80: 0 | P80: 0
A81: 2013-07-25 | B81: 1 | C81: 1.041666667 | D81: Spill ≤ TDG cap | E81: 74.12 | F81: Night Video | G81: 0 | H81: 0 | I81: 0 | J81: 0 | K81: 0 | L81: 0 | M81: 0 | N81: 0 | O81: 0 | P81: 0
A82: 2013-07-25 | B82: 1.041666667 | C82: 1.083333333 | D82: Spill ≤ TDG cap | E82: 74.381 | F82: Night Video | G82: 0 | H82: 0 | I82: 1 | J82: 0 | K82: 0 | L82: 0 | M82: 0 | N82: 0 | O82: 0 | P82: 0
A83: 2013-07-25 | B83: 1.083333333 | C83: 1.125 | D83: Spill ≤ TDG cap | E83: 74.295 | F83: Night Video | G83: 0 | H83: 0 | I83: 0 | J83: 0 | K83: 0 | L83: 0 | M83: 0 | N83: 0 | O83: 0 | P83: 0
A84: 2013-07-25 | B84: 1.125 | C84: 1.166666667 | D84: Spill ≤ TDG cap | E84: 73.602 | F84: Night Video | G84: 0 | H84: 0 | I84: 0 | J84: 0 | K84: 0 | L84: 0 | M84: 0 | N84: 0 | O84: 0 | P84: 0
A85: 2013-07-25 | B85: 1.166666667 | C85: 1.208333333 | D85: Spill ≤ TDG cap | E85: 73.342 | F85: Night Video | G85: 0 | H85: 0 | I85: 0 | J85: 0 | K85: 0 | L85: 0 | M85: 1 | N85: 1 | O85: 0 | P85: 0
A86: 2013-07-25 | B86: Sum Night | G86: 0 | I86: 1 | K86: 0 | M86: 0 | O86: -1
A87: 2013-07-25 | B87: 05:00:00 | C87: 06:00:00 | D87: Spill ≤ TDG cap | E87: 73.429 | F87: Day | G87: 1 | H87: 0 | I87: 0 | J87: 0 | K87: 0 | L87: 0 | M87: 4 | N87: 1 | O87: 0 | P87: 0
A88: 2013-07-25 | B88: 06:00:00 | C88: 07:00:00 | D88: Unit 1 | E88: 73.386 | F88: Day | G88: 0 | H88: 1 | I88: 0 | J88: 0 | K88: 1 | L88: 0 | M88: 4 | N88: 3 | O88: 0 | P88: 0
A89: 2013-07-25 | B89: 07:00:00 | C89: 08:00:00 | D89: Emerg. pumps installed | E89: 73.386 | F89: Day | G89: 8 | H89: 2 | I89: 5 | J89: 1 | K89: 5 | L89: 0 | M89: 4 | N89: 0 | O89: 0 | P89: 0
A90: 2013-07-25 | B90: 08:00:00 | C90: 09:00:00 | D90: Unit 1 | E90: 73.083 | F90: Day | G90: 19 | H90: 14 | I90: 18 | J90: 5 | K90: 4 | L90: 1 | M90: 2 | N90: 0 | O90: 2 | P90: 0
A91: 2013-07-25 | B91: 09:00:00 | C91: 10:00:00 | D91: Unit 1 | E91: 73.299 | F91: Day | G91: 24 | H91: 9 | I91: 14 | J91: 5 | K91: 6 | L91: 0 | M91: 4 | N91: 1 | O91: 2 | P91: 0
A92: 2013-07-25 | B92: 10:00:00 | C92: 11:00:00 | D92: Unit 1 | E92: 73.213 | F92: Day | G92: 17 | H92: 6 | I92: 16 | J92: 3 | K92: 1 | L92: 0 | M92: 2 | N92: 0 | O92: 2 | P92: 0
A93: 2013-07-25 | B93: 11:00:00 | C93: 12:00:00 | D93: Unit 1 | E93: 73.99 | F93: Day | G93: 28 | H93: 14 | I93: 14 | J93: 2 | K93: 4 | L93: 0 | M93: 9 | N93: 3 | O93: 4 | P93: 0
A94: 2013-07-25 | B94: 12:00:00 | C94: 13:00:00 | D94: Unit 1 | E94: 73.602 | F94: Day | G94: 22 | H94: 11 | I94: 15 | J94: 6 | K94: 2 | L94: 1 | M94: 3 | N94: 0 | O94: 1 | P94: 0
A95: 2013-07-25 | B95: Sum 0500-1300 | G95: 62 | I95: 60 | K95: 21 | M95: 24 | O95: 11
A96: 2013-07-25 | B96: 13:00:00 | C96: 14:00:00 | D96: Unit 1 | E96: 73.904 | F96: Day | G96: 13 | H96: 8 | I96: 8 | J96: 4 | K96: 1 | L96: 0 | M96: 2 | N96: 1 | O96: 2 | P96: 1
A97: 2013-07-25 | B97: 14:00:00 | C97: 15:00:00 | D97: Unit 1 | E97: 73.818 | F97: Day | G97: 26 | H97: 12 | I97: 18 | J97: 6 | K97: 3 | L97: 5 | M97: 7 | N97: 4 | O97: 1 | P97: 1
A98: 2013-07-25 | B98: 15:00:00 | C98: 16:00:00 | D98: Unit 1 | E98: 74.295 | F98: Day | G98: 19 | H98: 10 | I98: 12 | J98: 2 | K98: 5 | L98: 2 | M98: 3 | N98: 0 | O98: 0 | P98: 1
A99: 2013-07-25 | B99: 16:00:00 | C99: 17:00:00 | D99: Unit 1 | E99: 70.759 | F99: Day | G99: 45 | H99: 5 | I99: 25 | J99: 0 | K99: 1 | L99: 0 | M99: 8 | N99: 1 | O99: 5 | P99: 0
A100: 2013-07-25 | B100: 17:00:00 | C100: 18:00:00 | D100: Unit 1 | E100: 70.502 | F100: Day | G100: 20 | H100: 1 | I100: 22 | J100: 1 | K100: 8 | L100: 2 | M100: 4 | N100: 0 | O100: 4 | P100: 0
A101: 2013-07-25 | B101: 18:00:00 | C101: 19:00:00 | D101: FPP Unit 2 | E101: 70.803 | F101: Day | G101: 17 | H101: 1 | I101: 7 | J101: 0 | K101: 2 | L101: 0 | M101: 3 | N101: 0 | O101: 4 | P101: 1
A102: 2013-07-25 | B102: 19:00:00 | C102: 20:00:00 | D102: FPP Unit 2 | E102: 70.243 | F102: Day | G102: 1 | H102: 1 | I102: 2 | J102: 0 | K102: 2 | L102: 1 | M102: 0 | N102: 0 | O102: 1 | P102: 1
A103: 2013-07-25 | B103: 20:00:00 | C103: 21:00:00 | D103: FPP Unit 2 | E103: 69.901 | F103: Day | G103: 5 | H103: 0 | I103: 1 | J103: 0 | K103: 1 | L103: 0 | M103: 0 | N103: 0 | O103: 0 | P103: 1
A104: 2013-07-25 | B104: Sum 1300-2100 | G104: 108 | I104: 82 | K104: 13 | M104: 21 | O104: 11
A105: 2013-07-25 | B105: Day Total (FPC) = Sum 0500-2100 expanded by 1.2 | G105: 204 | I105: 170.4 | K105: 40.8 | M105: 54 | O105: 26.4
A106: 2013-07-25 | B106: 21:00:00 | C106: 22:00:00 | D106: FPP Unit 2 | E106: 69.771 | F106: Night Video | G106: 0 | H106: 0 | I106: 0 | J106: 0 | K106: 0 | L106: 0 | M106: 0 | N106: 0 | O106: 2 | P106: 0
A107: 2013-07-25 | B107: 22:00:00 | C107: 23:00:00 | D107: FPP Unit 2 | E107: 70.072 | F107: Night Video | G107: 1 | H107: 0 | I107: 0 | J107: 0 | K107: 0 | L107: 0 | M107: 0 | N107: 0 | O107: 0 | P107: 0
A108: 2013-07-25 | B108: 23:00:00 | C108: 1 | D108: FPP Unit 2 | E108: 70.286 | F108: Night Video | G108: 0 | H108: 0 | I108: 0 | J108: 1 | K108: 0 | L108: 0 | M108: 0 | N108: 0 | O108: 0 | P108: 0
A109: 2013-07-26 | B109: 1 | C109: 1.041666667 | D109: FPP Unit 2 | E109: 70.416 | F109: Night Video | G109: 0 | H109: 0 | I109: 0 | J109: 0 | K109: 0 | L109: 0 | M109: 0 | N109: 0 | O109: 0 | P109: 0
A110: 2013-07-26 | B110: 1.041666667 | C110: 1.083333333 | D110: FPP Unit 2 | E110: 70.115 | F110: Night Video | G110: 0 | H110: 0 | I110: 0 | J110: 0 | K110: 0 | L110: 0 | M110: 0 | N110: 0 | O110: 0 | P110: 0
A111: 2013-07-26 | B111: 1.083333333 | C111: 1.125 | D111: FPP Unit 2 | E111: 69.858 | F111: Night Video | G111: 0 | H111: 0 | I111: 0 | J111: 0 | K111: 0 | L111: 0 | M111: 0 | N111: 0 | O111: 0 | P111: 0
A112: 2013-07-26 | B112: 1.125 | C112: 1.166666667 | D112: FPP Unit 2 | E112: 69.985 | F112: Night Video | G112: 0 | H112: 0 | I112: 0 | J112: 0 | K112: 1 | L112: 0 | M112: 0 | N112: 0 | O112: 0 | P112: 0
A113: 2013-07-26 | B113: 1.166666667 | C113: 1.208333333 | D113: FPP Unit 2 | E113: 69.858 | F113: Night Video | G113: 1 | H113: 1 | I113: 0 | J113: 0 | K113: 0 | L113: 0 | M113: 0 | N113: 0 | O113: 0 | P113: 0
A114: 2013-07-26 | B114: Sum Night | G114: 1 | I114: -1 | K114: 1 | M114: 0 | O114: 2
A115: 2013-07-26 | B115: 05:00:00 | C115: 06:00:00 | D115: FPP Unit 2 | E115: 70.243 | F115: Day | G115: 0 | H115: 0 | I115: 7 | J115: 0 | K115: 0 | L115: 0 | M115: 0 | N115: 0 | O115: 0 | P115: 0
A116: 2013-07-26 | B116: 06:00:00 | C116: 07:00:00 | D116: FPP Unit 2 | E116: 70.115 | F116: Day | G116: 11 | H116: 0 | I116: 4 | J116: 0 | K116: 0 | L116: 0 | M116: 1 | N116: 0 | O116: 2 | P116: 1
A117: 2013-07-26 | B117: 07:00:00 | C117: 08:00:00 | D117: FPP Unit 2 | E117: 70.459 | F117: Day | G117: 10 | H117: 6 | I117: 7 | J117: 3 | K117: 2 | L117: 0 | M117: 2 | N117: 0 | O117: 0 | P117: 1
A118: 2013-07-26 | B118: 08:00:00 | C118: 09:00:00 | D118: FPP Unit 2 | E118: 70.93 | F118: Day | G118: 6 | H118: 14 | I118: 4 | J118: 16 | K118: 0 | L118: 0 | M118: 2 | N118: 2 | O118: 0 | P118: 0
A119: 2013-07-26 | B119: 09:00:00 | C119: 10:00:00 | D119: FPP Unit 2 | E119: 70.887 | F119: Day | G119: 7 | H119: 10 | I119: 4 | J119: 10 | K119: 4 | L119: 3 | M119: 4 | N119: 2 | O119: 0 | P119: 1
A120: 2013-07-26 | B120: 10:00:00 | C120: 11:00:00 | D120: FPP Unit 2 | E120: 70.846 | F120: Day | G120: 8 | H120: 14 | I120: 5 | J120: 9 | K120: 2 | L120: 3 | M120: 1 | N120: 0 | O120: 0 | P120: 0
A121: 2013-07-26 | B121: 11:00:00 | C121: 12:00:00 | D121: FPP Unit 2 | E121: 71.231 | F121: Day | G121: 14 | H121: 13 | I121: 6 | J121: 9 | K121: 2 | L121: 1 | M121: 0 | N121: 0 | O121: 2 | P121: 1
A122: 2013-07-26 | B122: 12:00:00 | C122: 13:00:00 | D122: FPP Unit 2 | E122: 71.103 | F122: Day | G122: 5 | H122: 7 | I122: 3 | J122: 7 | K122: 2 | L122: 0 | M122: 1 | N122: 0 | O122: 1 | P122: 1
A123: 2013-07-26 | B123: Sum 0500-1300 | G123: -3 | I123: -14 | K123: 5 | M123: 7 | O123: 0
A124: 2013-07-26 | B124: 13:00:00 | C124: 14:00:00 | D124: FPP Unit 2 | E124: 70.974 | F124: Day | G124: 1 | H124: 6 | I124: 1 | J124: 4 | K124: 2 | L124: 1 | M124: 1 | N124: 0 | O124: 0 | P124: 1
A125: 2013-07-26 | B125: 14:00:00 | C125: 15:00:00 | D125: FPP Unit 2 | E125: 70.587 | F125: Day | G125: 1 | H125: 9 | I125: 1 | J125: 3 | K125: 0 | L125: 0 | M125: 2 | N125: 0 | O125: 0 | P125: 2
A126: 2013-07-26 | B126: 15:00:00 | C126: 16:00:00 | D126: FPP Unit 2 | E126: 70.803 | F126: Day | G126: 4 | H126: 2 | I126: 0 | J126: 2 | K126: 0 | L126: 0 | M126: 2 | N126: 0 | O126: 2 | P126: 2
A127: 2013-07-26 | B127: 16:00:00 | C127: 17:00:00 | D127: FPP Unit 2 | E127: 74.64 | F127: Day | G127: 1 | H127: 9 | I127: 1 | J127: 1 | K127: 0 | L127: 0 | M127: 4 | N127: 3 | O127: 0 | P127: 1
A128: 2013-07-26 | B128: 17:00:00 | C128: 18:00:00 | D128: FPP Unit 2 | E128: 75.767 | F128: Day | G128: 0 | H128: 4 | I128: 1 | J128: 1 | K128: 0 | L128: 0 | M128: 1 | N128: 2 | O128: 0 | P128: 0
A129: 2013-07-26 | B129: 18:00:00 | C129: 19:00:00 | D129: FPP Unit 2 | E129: 75.508 | F129: Day | G129: 0 | H129: 0 | I129: 0 | J129: 0 | K129: 0 | L129: 0 | M129: 1 | N129: 0 | O129: 0 | P129: 0
A130: 2013-07-26 | B130: 19:00:00 | C130: 20:00:00 | D130: FPP Unit 2 | E130: 71.06 | F130: Day | G130: 1 | H130: 1 | I130: 4 | J130: 1 | K130: 0 | L130: 0 | M130: 1 | N130: 0 | O130: 0 | P130: 0
A131: 2013-07-26 | B131: 20:00:00 | C131: 21:00:00 | D131: FPP Unit 2 | E131: 70.93 | F131: Day | G131: 1 | H131: 0 | I131: 2 | J131: 0 | K131: 1 | L131: 0 | M131: 1 | N131: 0 | O131: 1 | P131: 0
A132: 2013-07-26 | B132: Sum 1300-2100 | G132: -22 | I132: -2 | K132: 2 | M132: 8 | O132: -3
A133: 2013-07-26 | B133: Day Total (FPC) = Sum 0500-2100 expanded by 1.2 | G133: -30 | I133: -19.2 | K133: 8.4 | M133: 18 | O133: -3.6
A134: 2013-07-26 | B134: 21:00:00 | C134: 22:00:00 | D134: FPP Unit 2 | E134: 70.63 | F134: Night Video | G134: 0 | H134: 1 | I134: 0 | J134: 0 | K134: 1 | L134: 0 | M134: 0 | N134: 0 | O134: 0 | P134: 1
A135: 2013-07-26 | B135: 22:00:00 | C135: 23:00:00 | D135: FPP Unit 2 | E135: 70.974 | F135: Night Video | G135: 0 | H135: 0 | I135: 0 | J135: 1 | K135: 0 | L135: 0 | M135: 0 | N135: 0 | O135: 1 | P135: 0
A136: 2013-07-26 | B136: 23:00:00 | C136: 1 | D136: FPP Unit 2 | E136: 71.447 | F136: Night Video | G136: 0 | H136: 0 | I136: 0 | J136: 0 | K136: 0 | L136: 0 | M136: 0 | N136: 0 | O136: 0 | P136: 0
A137: 2013-07-27 | B137: 1 | C137: 1.041666667 | D137: FPP Unit 2 | E137: 71.317 | F137: Night Video | G137: 1 | H137: 0 | I137: 0 | J137: 0 | K137: 0 | L137: 0 | M137: 0 | N137: 0 | O137: 0 | P137: 0
A138: 2013-07-27 | B138: 1.041666667 | C138: 1.083333333 | D138: FPP Unit 2 | E138: 71.361 | F138: Night Video | G138: 1 | H138: 0 | I138: 0 | J138: 0 | K138: 0 | L138: 0 | M138: 0 | N138: 0 | O138: 0 | P138: 0
A139: 2013-07-27 | B139: 1.083333333 | C139: 1.125 | D139: FPP Unit 2 | E139: 71.017 | F139: Night Video | G139: 1 | H139: 1 | I139: 0 | J139: 0 | K139: 0 | L139: 0 | M139: 0 | N139: 0 | O139: 0 | P139: 0
A140: 2013-07-27 | B140: 1.125 | C140: 1.166666667 | D140: FPP Unit 2 | E140: 70.716 | F140: Night Video | G140: 3 | H140: 3 | I140: 0 | J140: 0 | K140: 0 | L140: 0 | M140: 1 | N140: 0 | O140: 0 | P140: 0
A141: 2013-07-27 | B141: 1.166666667 | C141: 1.208333333 | D141: FPP Unit 2 | E141: 70.502 | F141: Night Video | G141: 0 | H141: 0 | I141: 0 | J141: 1 | K141: 0 | L141: 0 | M141: 1 | N141: 0 | O141: 0 | P141: 0
A142: 2013-07-27 | B142: Sum Night | G142: 1 | I142: -2 | K142: 1 | M142: 2 | O142: 0
A143: 2013-07-27 | B143: 05:00:00 | C143: 06:00:00 | D143: FPP Unit 2 | E143: 70.286 | F143: Day | G143: 3 | H143: 1 | I143: 2 | J143: 2 | K143: 0 | L143: 0 | M143: 1 | N143: 0 | O143: 0 | P143: 0
A144: 2013-07-27 | B144: 06:00:00 | C144: 07:00:00 | D144: FPP Unit 2 | E144: 72.912 | F144: Day | G144: 3 | H144: 2 | I144: 2 | J144: 1 | K144: 5 | L144: 3 | M144: 1 | N144: 0 | O144: 0 | P144: 0
A145: 2013-07-27 | B145: 07:00:00 | C145: 08:00:00 | D145: FPP Unit 2 | E145: 72.826 | F145: Day | G145: 2 | H145: 1 | I145: 1 | J145: 1 | K145: 0 | L145: 0 | M145: 0 | N145: 0 | O145: 0 | P145: 0
A146: 2013-07-27 | B146: 08:00:00 | C146: 09:00:00 | D146: FPP Unit 2 | E146: 73.256 | F146: Day | G146: 1 | H146: 1 | I146: 2 | J146: 1 | K146: 1 | L146: 0 | M146: 4 | N146: 1 | O146: 0 | P146: 0
A147: 2013-07-27 | B147: 09:00:00 | C147: 10:00:00 | D147: FPP Unit 2 | E147: 73.558 | F147: Day | G147: 0 | H147: 0 | I147: 0 | J147: 0 | K147: 1 | L147: 0 | M147: 1 | N147: 0 | O147: 0 | P147: 0
A148: 2013-07-27 | B148: 10:00:00 | C148: 11:00:00 | D148: Unit 1 | E148: 73.947 | F148: Day | G148: 0 | H148: 0 | I148: 1 | J148: 0 | K148: 1 | L148: 0 | M148: 1 | N148: 1 | O148: 0 | P148: 0
A149: 2013-07-27 | B149: 11:00:00 | C149: 12:00:00 | D149: Unit 1 | E149: 70.759 | F149: Day | G149: 11 | H149: 0 | I149: 7 | J149: 0 | K149: 1 | L149: 0 | M149: 7 | N149: 1 | O149: 0 | P149: 0
A150: 2013-07-27 | B150: 12:00:00 | C150: 13:00:00 | D150: Unit 1 | E150: 70.158 | F150: Day | G150: 22 | H150: 2 | I150: 16 | J150: 0 | K150: 8 | L150: 0 | M150: 10 | N150: 0 | O150: 0 | P150: 0
A151: 2013-07-27 | B151: Sum 0500-1300 | G151: 35 | I151: 26 | K151: 14 | M151: 22 | O151: 0
A152: 2013-07-27 | B152: 13:00:00 | C152: 14:00:00 | D152: Unit 1 | E152: 70.158 | F152: Day | G152: 42 | H152: 4 | I152: 34 | J152: 2 | K152: 10 | L152: 1 | M152: 6 | N152: 1 | O152: 2 | P152: 0
A153: 2013-07-27 | B153: 14:00:00 | C153: 15:00:00 | D153: Unit 1 | E153: 70.243 | F153: Day | G153: 77 | H153: 3 | I153: 39 | J153: 7 | K153: 3 | L153: 1 | M153: 5 | N153: 0 | O153: 4 | P153: 0
A154: 2013-07-27 | B154: 15:00:00 | C154: 16:00:00 | D154: Unit 1 | E154: 70.286 | F154: Day | G154: 57 | H154: 16 | I154: 27 | J154: 12 | K154: 4 | L154: 0 | M154: 13 | N154: 1 | O154: 6 | P154: 0
A155: 2013-07-27 | B155: 16:00:00 | C155: 17:00:00 | D155: Unit 1 | E155: 70.329 | F155: Day | G155: 34 | H155: 35 | I155: 20 | J155: 16 | K155: 3 | L155: 1 | M155: 6 | N155: 0 | O155: 6 | P155: 1
A156: 2013-07-27 | B156: 17:00:00 | C156: 18:00:00 | D156: Unit 1 | E156: 69.901 | F156: Day | G156: 25 | H156: 28 | I156: 12 | J156: 10 | K156: 0 | L156: 1 | M156: 6 | N156: 1 | O156: 5 | P156: 1
A157: 2013-07-27 | B157: 18:00:00 | C157: 19:00:00 | D157: Unit 1 | E157: 69.942 | F157: Day | G157: 22 | H157: 21 | I157: 8 | J157: 6 | K157: 0 | L157: 1 | M157: 4 | N157: 1 | O157: 2 | P157: 0
A158: 2013-07-27 | B158: 19:00:00 | C158: 20:00:00 | D158: Unit 1 | E158: 69.942 | F158: Day | G158: 10 | H158: 15 | I158: 13 | J158: 6 | K158: 0 | L158: 0 | M158: 2 | N158: 1 | O158: 1 | P158: 0
A159: 2013-07-27 | B159: 20:00:00 | C159: 21:00:00 | D159: Unit 1 | E159: 69.985 | F159: Day | G159: 6 | H159: 9 | I159: 3 | J159: 1 | K159: 0 | L159: 0 | M159: 1 | N159: 0 | O159: 1 | P159: 0
A160: 2013-07-27 | B160: Sum 1300-2100 | G160: 142 | I160: 96 | K160: 15 | M160: 38 | O160: 25
A161: 2013-07-27 | B161: Day Total (FPC) = Sum 0500-2100 expanded by 1.2 | G161: 212.4 | I161: 146.4 | K161: 34.8 | M161: 72 | O161: 30
A162: 2013-07-27 | B162: 21:00:00 | C162: 22:00:00 | D162: Unit 1 | E162: 69.858 | F162: Night Video | G162: 0 | H162: 1 | I162: 0 | J162: 1 | K162: 0 | L162: 0 | M162: 0 | N162: 0 | O162: 0 | P162: 0
A163: 2013-07-27 | B163: 22:00:00 | C163: 23:00:00 | D163: Unit 1 | E163: 69.643 | F163: Night Video | G163: 2 | H163: 3 | I163: 0 | J163: 1 | K163: 1 | L163: 0 | M163: 0 | N163: 0 | O163: 0 | P163: 0
A164: 2013-07-27 | B164: 23:00:00 | C164: 1 | D164: Unit 1 | E164: 69.386 | F164: Night Video | G164: 1 | H164: 0 | I164: 0 | J164: 0 | K164: 0 | L164: 0 | M164: 0 | N164: 0 | O164: 0 | P164: 0
A165: 2013-07-28 | B165: 1 | C165: 1.041666667 | D165: Unit 1 | E165: 69.3 | F165: Night Video | G165: 0 | H165: 3 | I165: 0 | J165: 1 | K165: 0 | L165: 0 | M165: 0 | N165: 0 | O165: 0 | P165: 0
A166: 2013-07-28 | B166: 1.041666667 | C166: 1.083333333 | D166: Unit 1 | E166: 69.557 | F166: Night Video | G166: 1 | H166: 4 | I166: 2 | J166: 4 | K166: 0 | L166: 0 | M166: 0 | N166: 0 | O166: 0 | P166: 0
A167: 2013-07-28 | B167: 1.083333333 | C167: 1.125 | D167: Unit 1 | E167: 69.814 | F167: Night Video | G167: 1 | H167: 5 | I167: 0 | J167: 2 | K167: 0 | L167: 0 | M167: 0 | N167: 0 | O167: 0 | P167: 0
A168: 2013-07-28 | B168: 1.125 | C168: 1.166666667 | D168: Unit 1 | E168: 69.901 | F168: Night Video | G168: 0 | H168: 6 | I168: 1 | J168: 4 | K168: 0 | L168: 0 | M168: 0 | N168: 0 | O168: 0 | P168: 0
A169: 2013-07-28 | B169: 1.166666667 | C169: 1.208333333 | D169: Unit 1 | E169: 69.386 | F169: Night Video | G169: 0 | H169: 5 | I169: 0 | J169: 6 | K169: 1 | L169: 1 | M169: 1 | N169: 0 | O169: 0 | P169: 1
A170: 2013-07-28 | F170: Sum Night | G170: -22 | I170: -16 | K170: 1 | M170: 1 | O170: -1
A171: 2013-07-28 | B171: 05:00:00 | C171: 06:00:00 | D171: Unit 1 | E171: 69.085 | F171: Day | G171: 13 | H171: 8 | I171: 7 | J171: 1 | K171: 0 | L171: 0 | M171: 0 | N171: 0 | O171: 0 | P171: 1
A172: 2013-07-28 | B172: 06:00:00 | C172: 07:00:00 | D172: Unit 1 | E172: 69.213 | F172: Day | G172: 23 | H172: 6 | I172: 9 | J172: 3 | K172: 1 | L172: 0 | M172: 3 | N172: 0 | O172: 0 | P172: 0
A173: 2013-07-28 | B173: 07:00:00 | C173: 08:00:00 | D173: Unit 1 | E173: 69.343 | F173: Day | G173: 63 | H173: 12 | I173: 33 | J173: 7 | K173: 3 | L173: 0 | M173: 9 | N173: 0 | O173: 5 | P173: 3
A174: 2013-07-28 | B174: 08:00:00 | C174: 09:00:00 | D174: Unit 1 | E174: 69.256 | F174: Day | G174: 46 | H174: 13 | I174: 19 | J174: 3 | K174: 2 | L174: 1 | M174: 6 | N174: 2 | O174: 2 | P174: 0
A175: 2013-07-28 | B175: 09:00:00 | C175: 10:00:00 | D175: Unit 1 | E175: 69.213 | F175: Day | G175: 24 | H175: 5 | I175: 24 | J175: 4 | K175: 1 | L175: 0 | M175: 1 | N175: 0 | O175: 4 | P175: 1
A176: 2013-07-28 | B176: 10:00:00 | C176: 11:00:00 | D176: Unit 1 | E176: 69.343 | F176: Day | G176: 31 | H176: 12 | I176: 26 | J176: 4 | K176: 8 | L176: 3 | M176: 6 | N176: 1 | O176: 3 | P176: 0
A177: 2013-07-28 | B177: 11:00:00 | C177: 12:00:00 | D177: Unit 1 | E177: 69.471 | F177: Day | G177: 34 | H177: 14 | I177: 22 | J177: 9 | K177: 1 | L177: 0 | M177: 7 | N177: 0 | O177: 5 | P177: 1
A178: 2013-07-28 | B178: 12:00:00 | C178: 13:00:00 | D178: Unit 1 | E178: 69.213 | F178: Day | G178: 25 | H178: 18 | I178: 10 | J178: 6 | K178: 4 | L178: 1 | M178: 4 | N178: 0 | O178: 1 | P178: 0
A179: 2013-07-28 | B179: Sum 0500-1300 | G179: 171 | I179: 113 | K179: 15 | M179: 33 | O179: 14
A180: 2013-07-28 | B180: 13:00:00 | C180: 14:00:00 | D180: Unit 1 | E180: 69.4°F (trap) | F180: Day | G180: 19 | H180: 26 | I180: 8 | J180: 14 | K180: 3 | L180: 0 | M180: 3 | N180: 1 | O180: 2 | P180: 0
A181: 2013-07-28 | B181: 14:00:00 | C181: 15:00:00 | D181: Unit 1 | E181: 69.6°F (trap) | F181: Day | G181: 26 | H181: 32 | I181: 12 | J181: 7 | K181: 2 | L181: 0 | M181: 5 | N181: 0 | O181: 4 | P181: 0
A182: 2013-07-28 | B182: 15:00:00 | C182: 16:00:00 | D182: Unit 1 | E182: 69.3°F (trap) | F182: Day | G182: 14 | H182: 27 | I182: 7 | J182: 4 | K182: 3 | L182: 0 | M182: 3 | N182: 0 | O182: 2 | P182: 0
A183: 2013-07-28 | B183: 16:00:00 | C183: 17:00:00 | D183: Unit 1 | E183: 69.3°F (trap) | F183: Day | G183: 15 | H183: 13 | I183: 9 | J183: 2 | K183: 2 | L183: 1 | M183: 5 | N183: 0 | O183: 1 | P183: 0
A184: 2013-07-28 | B184: 17:00:00 | C184: 18:00:00 | D184: Unit 1 | E184: 69.4°F (trap) | F184: Day | G184: 17 | H184: 15 | I184: 9 | J184: 5 | K184: 3 | L184: 0 | M184: 5 | N184: 0 | O184: 6 | P184: 0
A185: 2013-07-28 | B185: 18:00:00 | C185: 19:00:00 | D185: Unit 1 | E185: 69.3°F (trap) | F185: Day | G185: 11 | H185: 10 | I185: 5 | J185: 5 | K185: 1 | L185: 0 | M185: 1 | N185: 0 | O185: 3 | P185: 1
A186: 2013-07-28 | B186: 19:00:00 | C186: 20:00:00 | D186: Unit 1 | E186: 69.3 °F (trap) | F186: Day | G186: 4 | H186: 11 | I186: 5 | J186: 2 | K186: 2 | L186: 1 | M186: 1 | N186: 1 | O186: 5 | P186: 2
A187: 2013-07-28 | B187: 20:00:00 | C187: 21:00:00 | D187: Unit 1 | E187: 69.3°F (trap) | F187: Day | G187: 5 | H187: 7 | I187: 2 | J187: 3 | K187: 1 | L187: 0 | M187: 4 | N187: 0 | O187: 0 | P187: 0
A188: 2013-07-28 | B188: Sum 1300-2100 | G188: -30 | I188: 15 | K188: 15 | M188: 25 | O188: 20
A189: 2013-07-28 | B189: Day Total (FPC) = Sum 0500-2100 expanded by 1.2 | G189: 169.2 | I189: 153.6 | K189: 36 | M189: 69.6 | O189: 40.8
A190: 2013-07-28 | B190: 21:00:00 | C190: 22:00:00 | D190: Unit 1 | E190: 69.4°F (trap) | F190: Night Video | G190: 0 | H190: 3 | I190: 2 | J190: 2 | K190: 1 | L190: 0 | M190: 2 | N190: 0 | O190: 1 | P190: 2
A191: 2013-07-28 | B191: 22:00:00 | C191: 23:00:00 | D191: Unit 1 | E191: 69.2°F (trap) | F191: Night Video | G191: 0 | H191: 5 | I191: 0 | J191: 2 | K191: 0 | L191: 0 | M191: 0 | O191: 0 | P191: 0
A192: 2013-07-28 | B192: 23:00:00 | C192: 1 | D192: Unit 1 | E192: 70.2°F (trap) | F192: Night Video | G192: 3 | H192: 5 | I192: 0 | J192: 2 | K192: 0 | L192: 0 | M192: 0 | N192: 1 | O192: 1 | P192: 0
A193: 2013-07-29 | B193: 1 | C193: 1.041666667 | D193: Unit 1 | E193: 70.2°F (trap) | F193: Night Video | G193: 0 | H193: 2 | I193: 0 | J193: 0 | K193: 0 | L193: 0 | M193: 0 | N193: 0 | O193: 0 | P193: 1
A194: 2013-07-29 | B194: 1.041666667 | C194: 1.083333333 | D194: Unit 1 | E194: 70.1°F (trap) | F194: Night Video | G194: 0 | H194: 2 | I194: 0 | J194: 1 | K194: 0 | L194: 0 | M194: 0 | N194: 0 | O194: 0 | P194: 0
A195: 2013-07-29 | B195: 1.083333333 | C195: 1.125 | D195: Unit 1 | E195: 70.4°F (trap) | F195: Night Video | G195: 0 | H195: 2 | I195: 0 | J195: 1 | K195: 0 | L195: 0 | M195: 1 | N195: 0 | O195: 0 | P195: 0
A196: 2013-07-29 | B196: 1.125 | C196: 1.166666667 | D196: Unit 1 | E196: 70.4°F (trap) | F196: Night Video | G196: 0 | H196: 3 | I196: 0 | J196: 0 | K196: 0 | L196: 0 | M196: 0 | N196: 0 | O196: 0 | P196: 0
A197: 2013-07-29 | B197: 1.166666667 | C197: 1.208333333 | D197: Unit 1 | E197: 70.6°F (trap) | F197: Night Video | G197: 1 | H197: 4 | I197: 0 | J197: 1 | K197: 0 | L197: 0 | M197: 0 | N197: 0 | O197: 0 | P197: 0
A198: 2013-07-29 | B198: Sum Night | G198: -22 | I198: -7 | K198: 1 | M198: 2 | O198: -1
A199: 2013-07-29 | B199: 05:00:00 | C199: 06:00:00 | D199: Unit 1 | E199: 70.5°F (trap) | F199: Day | G199: 1 | H199: 4 | I199: 1 | J199: 0 | K199: 0 | L199: 1 | M199: 1 | N199: 0 | O199: 0 | P199: 0
A200: 2013-07-29 | B200: 06:00:00 | C200: 07:00:00 | D200: Unit 1 | E200: 70.4°F (trap) | F200: Day | G200: 11 | H200: 9 | I200: 1 | J200: 4 | K200: 4 | L200: 0 | M200: 7 | N200: 0 | O200: 0 | P200: 0
... 969 more rows

Sheet Temperature Data - all sites
C1: Junction Pool | D1: Turn Pool | E1: Diff-14 | F1: Ladder Exit | G1: Adult Trap | H1: OPERATION | I1: Differential (°F) | K1: Time | L1: 0.5m | M1: 1.5m | N1: 3m | O1: 5m | P1: 10m | Q1: 15m | R1: 20m | S1: 25m | T1: 30m | U1: 31m | V1: 32m | W1: 33m
A2: Date | B2: Time | C2: Temp (°F) | D2: Temp (°F) | E2: Temp (°F) | F2: Temp (°F) | G2: Temp (°F) | I2: First Pool to Exit | J2: Date
A3: 2013-07-22 | B3: 00:00:00 | C3: n/a | D3: 72.4802 | E3: n/a | F3: 73.861 | G3: n/a | H3: FPP Priority Unit 2 | I3: n/a
A4: 2013-07-22 | B4: 01:00:00 | C4: n/a | D4: 72.5234 | E4: n/a | F4: 73.515 | G4: n/a | H4: FPP Priority Unit 2 | I4: n/a
A5: 2013-07-22 | B5: 02:00:00 | C5: n/a | D5: 72.2642 | E5: n/a | F5: 73.213 | G5: n/a | H5: FPP Priority Unit 2 | I5: n/a
A6: 2013-07-22 | B6: 03:00:00 | C6: n/a | D6: 72.1778 | E6: n/a | F6: 73.213 | G6: n/a | H6: FPP Priority Unit 2 | I6: n/a
A7: 2013-07-22 | B7: 04:00:00 | C7: n/a | D7: 72.0932 | E7: n/a | F7: 73.256 | G7: n/a | H7: FPP Priority Unit 2 | I7: n/a
A8: 2013-07-22 | B8: 05:00:00 | C8: n/a | D8: 72.6098 | E8: n/a | F8: 73.256 | G8: n/a | H8: FPP Priority Unit 2 | I8: n/a
A9: 2013-07-22 | B9: 06:00:00 | C9: n/a | D9: 72.5234 | E9: n/a | F9: 73.688 | G9: n/a | H9: FPP Priority Unit 2 | I9: n/a
A10: 2013-07-22 | B10: 07:00:00 | C10: n/a | D10: 72.3074 | E10: n/a | F10: 73.861 | G10: n/a | H10: FPP Priority Unit 2 | I10: n/a
A11: 2013-07-22 | B11: 08:00:00 | C11: n/a | D11: 72.4802 | E11: n/a | F11: 74.034 | G11: n/a | H11: FPP Priority Unit 2 | I11: n/a
A12: 2013-07-22 | B12: 09:00:00 | C12: n/a | D12: 72.8258 | E12: n/a | F12: 74.034 | G12: n/a | H12: FPP Priority Unit 2 | I12: n/a
A13: 2013-07-22 | B13: 10:00:00 | C13: n/a | D13: 73.6448 | E13: n/a | F13: 75.029 | G13: n/a | H13: FPP Priority Unit 2 | I13: n/a
A14: 2013-07-22 | B14: 11:00:00 | C14: n/a | D14: 74.0768 | E14: n/a | F14: 75.074 | G14: n/a | H14: FPP Priority Unit 2 | I14: n/a
A15: 2013-07-22 | B15: 12:00:00 | C15: n/a | D15: 74.2946 | E15: n/a | F15: 75.42 | G15: n/a | H15: FPP Priority Unit 2 | I15: n/a
A16: 2013-07-22 | B16: 13:00:00 | C16: n/a | D16: 73.904 | E16: n/a | F16: 75.074 | G16: n/a | H16: FPP Priority Unit 2 | I16: n/a
A17: 2013-07-22 | B17: 14:00:00 | C17: n/a | D17: 73.472 | E17: n/a | F17: 74.813 | G17: n/a | H17: FPP Priority Unit 2 | I17: n/a
A18: 2013-07-22 | B18: 15:00:00 | C18: n/a | D18: 72.9122 | E18: n/a | F18: 74.511 | G18: n/a | H18: FPP Priority Unit 2 | I18: n/a
A19: 2013-07-22 | B19: 16:00:00 | C19: n/a | D19: 72.869 | E19: n/a | F19: 75.16 | G19: n/a | H19: FPP Priority Unit 2 | I19: n/a
A20: 2013-07-22 | B20: 17:00:00 | C20: n/a | D20: 72.6962 | E20: n/a | F20: 75.204 | G20: n/a | H20: FPP Priority Unit 2 | I20: n/a
A21: 2013-07-22 | B21: 18:00:00 | C21: n/a | D21: 71.9636 | E21: n/a | F21: 74.12 | G21: n/a | H21: Unit 1 Priority | I21: n/a
A22: 2013-07-22 | B22: 19:00:00 | C22: n/a | D22: 71.834 | E22: n/a | F22: 73.342 | G22: n/a | H22: Unit 1 Priority | I22: n/a
A23: 2013-07-22 | B23: 20:00:00 | C23: n/a | D23: 71.231 | E23: n/a | F23: 73.083 | G23: n/a | H23: Unit 1 Priority | I23: n/a
A24: 2013-07-22 | B24: 21:00:00 | C24: n/a | D24: 71.06 | E24: n/a | F24: 72.307 | G24: n/a | H24: Unit 1 Priority | I24: n/a
A25: 2013-07-22 | B25: 22:00:00 | C25: n/a | D25: 71.1464 | E25: n/a | F25: 72.264 | G25: n/a | H25: Unit 1 Priority | I25: n/a
A26: 2013-07-22 | B26: 23:00:00 | C26: n/a | D26: 71.231 | E26: n/a | F26: 72.912 | G26: n/a | H26: Unit 1 Priority | I26: n/a
A27: 2013-07-23 | B27: 00:00:00 | C27: n/a | D27: 71.2742 | E27: n/a | F27: 72.394 | G27: n/a | H27: Unit 1 Priority | I27: n/a
A28: 2013-07-23 | B28: 01:00:00 | C28: n/a | D28: 71.3174 | E28: n/a | F28: 71.834 | G28: n/a | H28: Unit 1 Priority | I28: n/a
A29: 2013-07-23 | B29: 02:00:00 | C29: n/a | D29: 71.3606 | E29: n/a | F29: 72.178 | G29: n/a | H29: Unit 1 Priority | I29: n/a
A30: 2013-07-23 | B30: 03:00:00 | C30: n/a | D30: 71.834 | E30: n/a | F30: 72.48 | G30: n/a | H30: Unit 1 Priority | I30: n/a
A31: 2013-07-23 | B31: 04:00:00 | C31: n/a | D31: 71.9204 | E31: n/a | F31: 72.48 | G31: n/a | H31: Unit 1 Priority | I31: n/a
A32: 2013-07-23 | B32: 05:00:00 | C32: n/a | D32: 71.8772 | E32: n/a | F32: 72.567 | G32: n/a | H32: Unit 1 Priority | I32: n/a
A33: 2013-07-23 | B33: 06:00:00 | C33: n/a | D33: 71.9636 | E33: n/a | F33: 72.826 | G33: n/a | H33: Unit 1 Priority | I33: n/a
A34: 2013-07-23 | B34: 07:00:00 | C34: n/a | D34: 71.9636 | E34: n/a | F34: 72.955 | G34: n/a | H34: Unit 1 Priority | I34: n/a
A35: 2013-07-23 | B35: 08:00:00 | C35: n/a | D35: 72.653 | E35: n/a | F35: 73.126 | G35: n/a | H35: FPP Priority Unit 2 | I35: n/a
A36: 2013-07-23 | B36: 09:00:00 | C36: n/a | D36: 72.5666 | E36: n/a | F36: 73.299 | G36: n/a | H36: FPP Priority Unit 2 | I36: n/a
A37: 2013-07-23 | B37: 10:00:00 | C37: n/a | D37: 73.1696 | E37: n/a | F37: 73.818 | G37: n/a | H37: FPP Priority Unit 2 | I37: n/a
A38: 2013-07-23 | B38: 11:00:00 | C38: n/a | D38: 73.5152 | E38: n/a | F38: 74.25 | G38: n/a | H38: FPP Priority Unit 2 | I38: n/a
A39: 2013-07-23 | B39: 12:00:00 | C39: n/a | D39: 73.5584 | E39: n/a | F39: 74.338 | G39: n/a | H39: FPP Priority Unit 2 | I39: n/a
A40: 2013-07-23 | B40: 13:00:00 | C40: n/a | D40: 74.12 | E40: n/a | F40: 74.295 | G40: n/a | H40: FPP Priority Unit 2 | I40: n/a
A41: 2013-07-23 | B41: 14:00:00 | C41: n/a | D41: 73.688 | E41: n/a | F41: 73.861 | G41: n/a | H41: FPP Priority Unit 2 | I41: n/a
A42: 2013-07-23 | B42: 15:00:00 | C42: n/a | D42: 73.7744 | E42: n/a | F42: 73.947 | G42: n/a | H42: FPP Priority Unit 2 | I42: n/a
A43: 2013-07-23 | B43: 16:00:00 | C43: n/a | D43: 73.6016 | E43: n/a | F43: 74.077 | G43: n/a | H43: FPP Priority Unit 2 | I43: n/a
A44: 2013-07-23 | B44: 17:00:00 | C44: n/a | D44: 74.0768 | E44: n/a | F44: 75.117 | G44: n/a | H44: FPP Priority Unit 2 | I44: n/a
A45: 2013-07-23 | B45: 18:00:00 | C45: n/a | D45: 74.5106 | E45: n/a | F45: 75.16 | G45: n/a | H45: FPP Priority Unit 2 | I45: n/a
A46: 2013-07-23 | B46: 19:00:00 | C46: n/a | D46: 74.4242 | E46: n/a | F46: 75.767 | G46: n/a | H46: Spill ≤TDG cap | I46: n/a
A47: 2013-07-23 | B47: 20:00:00 | C47: n/a | D47: 74.4242 | E47: n/a | F47: 75.594 | G47: n/a | H47: Spill ≤TDG cap | I47: n/a
A48: 2013-07-23 | B48: 21:00:00 | C48: n/a | D48: 74.5538 | E48: n/a | F48: 75.463 | G48: n/a | H48: Spill ≤TDG cap | I48: n/a
A49: 2013-07-23 | B49: 22:00:00 | C49: n/a | D49: 74.1632 | E49: n/a | F49: 75.16 | G49: n/a | H49: Spill ≤TDG cap | I49: n/a
A50: 2013-07-23 | B50: 23:00:00 | C50: n/a | D50: 73.8176 | E50: n/a | F50: 74.899 | G50: n/a | H50: Spill ≤TDG cap | I50: n/a
A51: 2013-07-24 | B51: 00:00:00 | C51: n/a | D51: 73.688 | E51: n/a | F51: 74.899 | G51: n/a | H51: Spill ≤TDG cap | I51: n/a
A52: 2013-07-24 | B52: 01:00:00 | C52: n/a | D52: 73.472 | E52: n/a | F52: 75.074 | G52: n/a | H52: Spill ≤TDG cap | I52: n/a
A53: 2013-07-24 | B53: 02:00:00 | C53: n/a | D53: 73.256 | E53: n/a | F53: 75.247 | G53: n/a | H53: Spill ≤TDG cap | I53: n/a
A54: 2013-07-24 | B54: 03:00:00 | C54: n/a | D54: 73.1696 | E54: n/a | F54: 75.551 | G54: n/a | H54: Spill ≤TDG cap | I54: n/a
A55: 2013-07-24 | B55: 04:00:00 | C55: n/a | D55: 72.7826 | E55: n/a | F55: 75.16 | G55: n/a | H55: Spill ≤TDG cap | I55: n/a
A56: 2013-07-24 | B56: 05:00:00 | C56: n/a | D56: 72.6098 | E56: n/a | F56: 74.64 | G56: n/a | H56: Spill ≤TDG cap | I56: n/a
A57: 2013-07-24 | B57: 06:00:00 | C57: n/a | D57: 72.653 | E57: n/a | F57: 75.117 | G57: n/a | H57: Unit 1 Priority | I57: n/a
A58: 2013-07-24 | B58: 07:00:00 | C58: n/a | D58: 72.7826 | E58: n/a | F58: 74.077 | G58: n/a | H58: Unit 1 Priority | I58: n/a
A59: 2013-07-24 | B59: 08:00:00 | C59: n/a | D59: 72.9122 | E59: n/a | F59: 74.727 | G59: n/a | H59: Unit 1 Priority | I59: n/a
A60: 2013-07-24 | B60: 09:00:00 | C60: n/a | D60: 72.9968 | E60: n/a | F60: 75.204 | G60: n/a | H60: Unit 1 Priority | I60: n/a
A61: 2013-07-24 | B61: 10:00:00 | C61: n/a | D61: 73.6016 | E61: n/a | F61: 75.333 | G61: n/a | H61: Unit 1 Priority | I61: n/a
A62: 2013-07-24 | B62: 11:00:00 | C62: n/a | D62: 73.5584 | E62: n/a | F62: 75.376 | G62: n/a | H62: Unit 1 Priority | I62: n/a
A63: 2013-07-24 | B63: 12:00:00 | C63: n/a | D63: 73.688 | E63: n/a | F63: 74.813 | G63: n/a | H63: Unit 1 Priority | I63: n/a
A64: 2013-07-24 | B64: 13:00:00 | C64: n/a | D64: 73.7312 | E64: n/a | F64: 74.943 | G64: n/a | H64: Unit 1 Priority | I64: n/a
A65: 2013-07-24 | B65: 14:00:00 | C65: n/a | D65: 73.9904 | E65: n/a | F65: 75.333 | G65: n/a | H65: Unit 1 Priority | I65: n/a
A66: 2013-07-24 | B66: 15:00:00 | C66: n/a | D66: 74.2496 | E66: n/a | F66: 75.594 | G66: n/a | H66: Unit 1 Priority | I66: n/a
A67: 2013-07-24 | B67: 16:00:00 | C67: n/a | D67: 73.8608 | E67: n/a | F67: 75.376 | G67: n/a | H67: Unit 1 Priority | I67: n/a
A68: 2013-07-24 | B68: 17:00:00 | C68: n/a | D68: 73.1696 | E68: n/a | F68: 74.986 | G68: n/a | H68: Unit 1 Priority | I68: n/a
A69: 2013-07-24 | B69: 18:00:00 | C69: n/a | D69: 73.2128 | E69: n/a | F69: 75.29 | G69: n/a | H69: Spill ≤TDG cap | I69: n/a
A70: 2013-07-24 | B70: 19:00:00 | C70: n/a | D70: 73.1696 | E70: n/a | F70: 74.554 | G70: n/a | H70: Spill ≤TDG cap | I70: n/a
A71: 2013-07-24 | B71: 20:00:00 | C71: n/a | D71: 73.1696 | E71: n/a | F71: 74.034 | G71: n/a | H71: Spill ≤TDG cap | I71: n/a
A72: 2013-07-24 | B72: 21:00:00 | C72: n/a | D72: 72.9122 | E72: n/a | F72: 74.163 | G72: n/a | H72: Spill ≤TDG cap | I72: n/a
A73: 2013-07-24 | B73: 22:00:00 | C73: n/a | D73: 72.869 | E73: n/a | F73: 73.947 | G73: n/a | H73: Spill ≤TDG cap | I73: n/a
A74: 2013-07-24 | B74: 23:00:00 | C74: n/a | D74: 72.5666 | E74: n/a | F74: 74.077 | G74: n/a | H74: Spill ≤TDG cap | I74: n/a
A75: 2013-07-25 | B75: 00:00:00 | C75: n/a | D75: 72.8258 | E75: n/a | F75: 74.12 | G75: n/a | H75: Spill ≤TDG cap | I75: n/a
A76: 2013-07-25 | B76: 01:00:00 | C76: n/a | D76: 72.8258 | E76: n/a | F76: 74.381 | G76: n/a | H76: Spill ≤TDG cap | I76: n/a
A77: 2013-07-25 | B77: 02:00:00 | C77: n/a | D77: 72.6098 | E77: n/a | F77: 74.295 | G77: n/a | H77: Spill ≤TDG cap | I77: n/a
A78: 2013-07-25 | B78: 03:00:00 | C78: n/a | D78: 72.3506 | E78: n/a | F78: 73.602 | G78: n/a | H78: Spill ≤TDG cap | I78: n/a
A79: 2013-07-25 | B79: 04:00:00 | C79: n/a | D79: 72.3074 | E79: n/a | F79: 73.342 | G79: n/a | H79: Spill ≤TDG cap | I79: n/a
A80: 2013-07-25 | B80: 05:00:00 | C80: n/a | D80: 72.437 | E80: n/a | F80: 73.429 | G80: n/a | H80: Spill ≤TDG cap | I80: n/a
A81: 2013-07-25 | B81: 06:00:00 | C81: n/a | D81: 72.221 | E81: n/a | F81: 73.386 | G81: n/a | H81: Unit 1 Priority | I81: n/a
A82: 2013-07-25 | B82: 07:00:00 | C82: 72.567 | D82: 72.869 | E82: 72.6962 | F82: 73.386 | G82: 72.653 | H82: Unit 1 Priority; emerg. pumps installed | I82: =F82-C82 -> 0.819
A83: 2013-07-25 | B83: 08:00:00 | C83: 73.774 | D83: 71.9636 | E83: 72.2642 | F83: 73.083 | G83: 73.386 | H83: Unit 1 Priority | I83: -0.691
A84: 2013-07-25 | B84: 09:00:00 | C84: 76.071 | D84: 71.7908 | E84: 75.767 | F84: 73.299 | G84: 76.811 | H84: Unit 1 Priority | I84: -2.772
A85: 2013-07-25 | B85: 10:00:00 | C85: 73.861 | D85: 71.6612 | E85: 72.9968 | F85: 73.213 | G85: 73.688 | H85: Unit 1 Priority | I85: -0.648
A86: 2013-07-25 | B86: 11:00:00 | C86: 73.386 | D86: 71.9636 | E86: 73.1696 | F86: 73.99 | G86: 73.17 | H86: Unit 1 Priority | I86: 0.604
A87: 2013-07-25 | B87: 12:00:00 | C87: 73.558 | D87: 72.0068 | E87: 73.472 | F87: 73.602 | G87: 73.731 | H87: Unit 1 Priority | I87: 0.044
A88: 2013-07-25 | B88: 13:00:00 | C88: 73.861 | D88: 71.9636 | E88: 73.7312 | F88: 73.904 | G88: 73.99 | H88: Unit 1 Priority | I88: 0.043
A89: 2013-07-25 | B89: 14:00:00 | C89: 72.61 | D89: 71.834 | E89: 71.447 | F89: 73.818 | G89: 71.834 | H89: Unit 1 Priority | I89: 1.208
A90: 2013-07-25 | B90: 15:00:00 | C90: 71.231 | D90: 72.221 | E90: 71.7908 | F90: 74.295 | G90: 72.221 | H90: Unit 1 Priority | I90: 3.064
A91: 2013-07-25 | B91: 16:00:00 | C91: 66.6 | D91: 70.5866 | E91: 69.9854 | F91: 70.759 | G91: 70.416 | H91: Unit 1 Priority | I91: 4.159
A92: 2013-07-25 | B92: 17:00:00 | C92: 66.943 | D92: 70.4588 | E92: 69.728 | F92: 70.502 | G92: 70.329 | H92: Unit 1 Priority | I92: 3.559
A93: 2013-07-25 | B93: 18:00:00 | C93: 67.114 | D93: 70.4156 | E93: 70.0718 | F93: 70.803 | G93: 70.329 | H93: FPP Priority Unit 2 | I93: 3.689
A94: 2013-07-25 | B94: 19:00:00 | C94: 67.543 | D94: 69.9854 | E94: 69.7712 | F94: 70.243 | G94: 69.901 | H94: FPP Priority Unit 2 | I94: 2.7
A95: 2013-07-25 | B95: 20:00:00 | C95: 68.571 | D95: 70.0286 | E95: 69.6434 | F95: 69.901 | G95: 69.942 | H95: FPP Priority Unit 2 | I95: 1.33
A96: 2013-07-25 | B96: 21:00:00 | C96: 67.928 | D96: 69.8144 | E96: 69.4706 | F96: 69.771 | G96: 69.728 | H96: FPP Priority Unit 2 | I96: 1.843
A97: 2013-07-25 | B97: 22:00:00 | C97: 66.814 | D97: 69.9008 | E97: 69.557 | F97: 70.072 | G97: 69.814 | H97: FPP Priority Unit 2 | I97: 3.258
A98: 2013-07-25 | B98: 23:00:00 | C98: 67.928 | D98: 70.0286 | E98: 69.728 | F98: 70.286 | G98: 69.942 | H98: FPP Priority Unit 2 | I98: 2.358
A99: 2013-07-26 | B99: 00:00:00 | C99: 67.671 | D99: 70.286 | E99: 69.8576 | F99: 70.416 | G99: 70.158 | H99: FPP Priority Unit 2 | I99: 2.745
A100: 2013-07-26 | B100: 01:00:00 | C100: 67.329 | D100: 70.115 | E100: 69.7712 | F100: 70.115 | G100: 69.985 | H100: FPP Priority Unit 2 | I100: 2.786
A101: 2013-07-26 | B101: 02:00:00 | C101: 66.985 | D101: 69.9008 | E101: 69.6002 | F101: 69.858 | G101: 69.814 | H101: FPP Priority Unit 2 | I101: 2.873
A102: 2013-07-26 | B102: 03:00:00 | C102: 68.27 | D102: 70.0286 | E102: 69.7712 | F102: 69.985 | G102: 69.942 | H102: FPP Priority Unit 2 | I102: 1.715
A103: 2013-07-26 | B103: 04:00:00 | C103: 67.372 | D103: 70.115 | E103: 69.8144 | F103: 69.858 | G103: 70.029 | H103: FPP Priority Unit 2 | I103: 2.486
A104: 2013-07-26 | B104: 05:00:00 | C104: 68.185 | D104: 70.1582 | E104: 69.9854 | F104: 70.243 | G104: 70.072 | H104: FPP Priority Unit 2 | I104: 2.058
A105: 2013-07-26 | B105: 06:00:00 | C105: 67.329 | D105: 70.1582 | E105: 69.8144 | F105: 70.115 | G105: 70.072 | H105: FPP Priority Unit 2 | I105: 2.786
A106: 2013-07-26 | B106: 07:00:00 | C106: 67.158 | D106: 70.286 | E106: 70.0718 | F106: 70.459 | G106: 70.201 | H106: FPP Priority Unit 2 | I106: 3.301
A107: 2013-07-26 | B107: 08:00:00 | C107: 67.413 | D107: 70.9736 | E107: 70.8458 | F107: 70.93 | G107: 70.887 | H107: FPP Priority Unit 2 | I107: 3.517
A108: 2013-07-26 | B108: 09:00:00 | C108: 68.313 | D108: 70.9736 | E108: 70.7594 | F108: 70.887 | G108: 70.887 | H108: FPP Priority Unit 2 | I108: 2.574
A109: 2013-07-26 | B109: 10:00:00 | C109: 68.913 | D109: 71.1032 | E109: 70.7162 | F109: 70.846 | G109: 70.974 | H109: FPP Priority Unit 2 | I109: 1.933
A110: 2013-07-26 | B110: 11:00:00 | C110: 73.774 | F110: 71.231 | G110: 71.19 | H110: FPP Priority Unit 2 | I110: -2.543
A111: 2013-07-26 | B111: 12:00:00 | C111: 72.437 | F111: 71.103 | G111: 71.447 | H111: FPP Priority Unit 2 | I111: -1.334
A112: 2013-07-26 | B112: 13:00:00 | C112: 72.826 | F112: 70.974 | G112: 71.533 | H112: FPP Priority Unit 2 | I112: -1.852
A113: 2013-07-26 | B113: 14:00:00 | C113: 73.083 | F113: 70.587 | G113: 72.523 | H113: FPP Priority Unit 2 | I113: -2.496
A114: 2013-07-26 | B114: 15:00:00 | C114: 72.178 | F114: 70.803 | G114: 72.653 | H114: FPP Priority Unit 2 | I114: =F114-C114 -> -1.375
A115: 2013-07-26 | B115: 16:00:00 | C115: 72.221 | F115: 74.64 | G115: 73.558 | H115: FPP Priority Unit 2 | I115: 2.419
A116: 2013-07-26 | B116: 17:00:00 | C116: 74.381 | F116: 75.767 | G116: 75.029 | H116: FPP Priority Unit 2 | I116: 1.386
A117: 2013-07-26 | B117: 18:00:00 | C117: 73.947 | F117: 75.508 | G117: 74.597 | H117: FPP Priority Unit 2 | I117: 1.561
A118: 2013-07-26 | B118: 19:00:00 | C118: 68.013 | F118: 71.06 | G118: 71.146 | H118: FPP Priority Unit 2 | I118: 3.047
A119: 2013-07-26 | B119: 20:00:00 | C119: 68.828 | F119: 70.93 | G119: 70.846 | H119: FPP Priority Unit 2 | I119: 2.102
A120: 2013-07-26 | B120: 21:00:00 | C120: 67.5 | F120: 70.63 | G120: 70.416 | H120: FPP Priority Unit 2 | I120: 3.13
A121: 2013-07-26 | B121: 22:00:00 | C121: 67.242 | F121: 70.974 | G121: 71.017 | H121: FPP Priority Unit 2 | I121: 3.732
A122: 2013-07-26 | B122: 23:00:00 | C122: 68.956 | F122: 71.447 | G122: 71.103 | H122: FPP Priority Unit 2 | I122: 2.491
A123: 2013-07-27 | B123: 1 | C123: 67.586 | F123: 71.317 | G123: 71.146 | H123: FPP Priority Unit 2 | I123: 3.731
A124: 2013-07-27 | B124: 1.041666667 | C124: 67.329 | F124: 71.361 | G124: 71.19 | H124: FPP Priority Unit 2 | I124: 4.032
A125: 2013-07-27 | B125: 1.083333333 | C125: 68.484 | F125: 71.017 | G125: 71.017 | H125: FPP Priority Unit 2 | I125: 2.533
A126: 2013-07-27 | B126: 1.125 | C126: 68.099 | F126: 70.716 | G126: 70.716 | H126: FPP Priority Unit 2 | I126: 2.617
A127: 2013-07-27 | B127: 1.166666667 | C127: 67.071 | F127: 70.502 | G127: 70.502 | H127: FPP Priority Unit 2 | I127: 3.431
A128: 2013-07-27 | B128: 1.208333333 | C128: 67.158 | F128: 70.286 | G128: 70.201 | H128: FPP Priority Unit 2 | I128: 3.128
A129: 2013-07-27 | B129: 1.25 | C129: 66.9 | F129: 72.912 | G129: 70.243 | H129: FPP Priority Unit 2 | I129: 6.012
A130: 2013-07-27 | B130: 1.291666667 | C130: 67.798 | F130: 72.826 | G130: 71.791 | H130: FPP Priority Unit 2 | I130: 5.028
A131: 2013-07-27 | B131: 1.333333333 | C131: 67.456 | F131: 73.256 | G131: 71.661 | H131: FPP Priority Unit 2 | I131: 5.8
A132: 2013-07-27 | B132: 1.375 | C132: 68.571 | F132: 73.558 | G132: 72.307 | H132: Unit 1 Priority | I132: 4.987
A133: 2013-07-27 | B133: 1.416666667 | C133: 67.671 | F133: 73.947 | G133: 72.307 | H133: Unit 1 Priority | I133: 6.276
A134: 2013-07-27 | B134: 1.458333333 | C134: 66.087 | F134: 70.759 | G134: 70.543 | H134: Unit 1 Priority | I134: 4.672
A135: 2013-07-27 | B135: 1.5 | C135: 65.658 | F135: 70.158 | G135: 70.201 | H135: Unit 1 Priority | I135: 4.5
A136: 2013-07-27 | B136: 1.541666667 | C136: 66.258 | F136: 70.158 | G136: 70.072 | H136: Unit 1 Priority | I136: 3.9
A137: 2013-07-27 | B137: 1.583333333 | C137: 66.043 | F137: 70.243 | G137: 69.728 | H137: Unit 1 Priority | I137: 4.2
A138: 2013-07-27 | B138: 1.625 | C138: 65.829 | F138: 70.286 | G138: 69.985 | H138: Unit 1 Priority | I138: 4.457
A139: 2013-07-27 | B139: 1.666666667 | C139: 66.043 | F139: 70.329 | G139: 69.814 | H139: Unit 1 Priority | I139: 4.286
A140: 2013-07-27 | B140: 1.708333333 | C140: 65.959 | F140: 69.901 | G140: 69.771 | H140: Unit 1 Priority | I140: 3.942
A141: 2013-07-27 | B141: 1.75 | C141: 65.615 | F141: 69.942 | G141: 69.685 | H141: Unit 1 Priority | I141: 4.327
A142: 2013-07-27 | B142: 1.791666667 | C142: 65.959 | F142: 69.942 | G142: 69.643 | H142: Unit 1 Priority | I142: 3.983
A143: 2013-07-27 | B143: 1.833333333 | C143: 65.959 | F143: 69.985 | G143: 69.728 | H143: Unit 1 Priority | I143: 4.026
A144: 2013-07-27 | B144: 1.875 | C144: 66.258 | F144: 69.858 | G144: 69.728 | H144: Unit 1 Priority | I144: 3.6
A145: 2013-07-27 | B145: 1.916666667 | C145: 65.658 | F145: 69.643 | G145: 69.557 | H145: Unit 1 Priority | I145: 3.985
A146: 2013-07-27 | B146: 1.958333333 | C146: 65.444 | F146: 69.386 | G146: 69.471 | H146: Unit 1 Priority | I146: =F146-C146 -> 3.942
A147: 2013-07-28 | B147: 2 | C147: 65.188 | F147: 69.3 | G147: 69.386 | H147: Unit 1 Priority | I147: 4.112
A148: 2013-07-28 | B148: 2.041666667 | C148: 65.829 | F148: 69.557 | G148: 69.557 | H148: Unit 1 Priority | I148: 3.728
A149: 2013-07-28 | B149: 2.083333333 | C149: 66.043 | F149: 69.814 | G149: 69.685 | H149: Unit 1 Priority | I149: 3.771
A150: 2013-07-28 | B150: 2.125 | C150: 65.574 | F150: 69.901 | G150: 69.814 | H150: Unit 1 Priority | I150: 4.327
A151: 2013-07-28 | B151: 2.166666667 | C151: 65.615 | F151: 69.386 | G151: 69.3 | H151: Unit 1 Priority | I151: 3.771
A152: 2013-07-28 | B152: 2.208333333 | C152: 65.615 | F152: 69.085 | G152: 69.256 | H152: Unit 1 Priority | I152: 3.47
A153: 2013-07-28 | B153: 2.25 | C153: 65.615 | F153: 69.213 | G153: 69.129 | H153: Unit 1 Priority | I153: 3.598
A154: 2013-07-28 | B154: 2.291666667 | C154: 65.959 | F154: 69.343 | G154: 69.256 | H154: Unit 1 Priority | I154: 3.384
A155: 2013-07-28 | B155: 2.333333333 | C155: 65.145 | F155: 69.256 | G155: 69.213 | H155: Unit 1 Priority | I155: 4.111
A156: 2013-07-28 | B156: 2.375 | C156: 65.017 | F156: 69.213 | G156: 69.129 | H156: Unit 1 Priority | I156: 4.196
A157: 2013-07-28 | B157: 2.416666667 | C157: 65.188 | F157: 69.343 | G157: 69.17 | H157: Unit 1 Priority | I157: 4.155
A158: 2013-07-28 | B158: 2.458333333 | C158: 65.145 | F158: 69.471 | G158: 69.256 | H158: Unit 1 Priority | I158: 4.326
A159: 2013-07-28 | B159: 2.5 | C159: 65.359 | F159: 69.213 | G159: 69.129 | H159: Unit 1 Priority | I159: 3.854
A160: 2013-07-28 | B160: 2.541666667 | C160: 65.658 | G160: 69.427 | H160: Unit 1 Priority | I160: n/a
A161: 2013-07-28 | B161: 2.583333333 | G161: 69.6 | H161: Unit 1 Priority | I161: n/a
A162: 2013-07-28 | B162: 2.625 | G162: 69.3 | H162: Unit 1 Priority | I162: n/a
A163: 2013-07-28 | B163: 2.666666667 | G163: 69.256 | H163: Unit 1 Priority | I163: n/a
A164: 2013-07-28 | B164: 2.708333333 | G164: 69.471 | H164: Unit 1 Priority | I164: n/a
A165: 2013-07-28 | B165: 2.75 | G165: 69.343 | H165: Unit 1 Priority | I165: n/a
A166: 2013-07-28 | B166: 2.791666667 | G166: 69.256 | H166: Unit 1 Priority | I166: n/a
A167: 2013-07-28 | B167: 2.833333333 | G167: 69.343 | H167: Unit 1 Priority | I167: n/a
A168: 2013-07-28 | B168: 2.875 | G168: 69.386 | H168: Unit 1 Priority | I168: n/a
A169: 2013-07-28 | B169: 2.916666667 | G169: 69.213 | H169: Unit 1 Priority | I169: n/a
A170: 2013-07-28 | B170: 2.958333333 | G170: 70.158 | H170: Unit 1 Priority | I170: n/a
A171: 2013-07-29 | B171: 3 | G171: 70.243 | H171: Unit 1 Priority | I171: n/a
A172: 2013-07-29 | B172: 3.041666667 | G172: 70.115 | H172: Unit 1 Priority | I172: n/a
A173: 2013-07-29 | B173: 3.083333333 | G173: 70.416 | H173: Unit 1 Priority | I173: n/a
A174: 2013-07-29 | B174: 3.125 | G174: 70.416 | H174: Unit 1 Priority | I174: n/a
A175: 2013-07-29 | B175: 3.166666667 | G175: 70.63 | H175: Unit 1 Priority | I175: n/a
A176: 2013-07-29 | B176: 3.208333333 | G176: 70.459 | H176: Unit 1 Priority | I176: n/a
A177: 2013-07-29 | B177: 3.25 | G177: 70.372 | H177: Unit 1 Priority | I177: n/a
A178: 2013-07-29 | B178: 3.291666667 | G178: 70.502 | H178: Unit 1 Priority | I178: n/a
A179: 2013-07-29 | B179: 3.333333333 | G179: 70.7162 | H179: Unit 1 Priority | I179: n/a
A180: 2013-07-29 | B180: 3.375 | G180: 70.8872 | H180: Unit 1 Priority | I180: n/a
A181: 2013-07-29 | B181: 3.416666667 | G181: 70.8026 | H181: Unit 1 Priority | I181: n/a
A182: 2013-07-29 | B182: 3.458333333 | G182: 70.8458 | H182: FPP Priority Unit 2 | I182: n/a
A183: 2013-07-29 | B183: 3.5 | G183: 70.502 | H183: FPP Priority Unit 2 | I183: n/a
A184: 2013-07-29 | B184: 3.541666667 | G184: 70.7594 | H184: FPP Priority Unit 2 | I184: n/a
A185: 2013-07-29 | B185: 3.583333333 | E185: 70.5434 | F185: 70.502 | G185: 70.9304 | H185: FPP Priority Unit 2 | I185: n/a
A186: 2013-07-29 | B186: 3.625 | E186: 70.4588 | F186: 70.6298 | G186: 70.8458 | H186: FPP Priority Unit 2 | I186: n/a
A187: 2013-07-29 | B187: 3.666666667 | C187: 67.586 | D187: 70.8872 | E187: 70.7162 | F187: 70.9736 | G187: 70.7162 | H187: FPP Priority Unit 2 | I187: =F187-C187 -> 3.3876
A188: 2013-07-29 | B188: 3.708333333 | C188: 67.6706 | D188: 70.8458 | E188: 70.5434 | F188: 70.8458 | G188: 70.6298 | H188: FPP Priority Unit 2 | I188: 3.1752
A189: 2013-07-29 | B189: 3.75 | C189: 67.4996 | D189: 70.8026 | E189: 70.6298 | F189: 70.9736 | G189: 70.673 | H189: FPP Priority Unit 2 | I189: 3.474
A190: 2013-07-29 | B190: 3.791666667 | C190: 67.3286 | D190: 70.8026 | E190: 70.673 | F190: 70.8026 | G190: 70.7162 | H190: FPP Priority Unit 2 | I190: 3.474
A191: 2013-07-29 | B191: 3.833333333 | C191: 67.028 | D191: 70.8458 | E191: 70.7594 | F191: 71.0168 | G191: 70.8026 | H191: FPP Priority Unit 2 | I191: 3.9888
A192: 2013-07-29 | B192: 3.875 | C192: 67.4996 | D192: 70.7594 | E192: 70.5434 | F192: 70.9736 | G192: 70.6298 | H192: FPP Priority Unit 2 | I192: 3.474
A193: 2013-07-29 | B193: 3.916666667 | C193: 67.2422 | D193: 70.8026 | E193: 70.4588 | F193: 71.0168 | G193: 70.4588 | H193: FPP Priority Unit 2 | I193: 3.7746
A194: 2013-07-29 | B194: 3.958333333 | C194: 67.3286 | D194: 70.6298 | E194: 70.4588 | F194: 71.0168 | G194: 70.286 | H194: FPP Priority Unit 2 | I194: 3.6882
A195: 2013-07-30 | B195: 4 | C195: 67.3718 | D195: 70.5866 | E195: 70.3292 | F195: 70.8458 | G195: 70.2428 | H195: FPP Priority Unit 2 | I195: 3.474
A196: 2013-07-30 | B196: 4.041666667 | C196: 67.2422 | D196: 70.4156 | E196: 70.1582 | F196: 70.4588 | G196: 70.115 | H196: FPP Priority Unit 2 | I196: 3.2166
A197: 2013-07-30 | B197: 4.083333333 | C197: 66.9848 | D197: 70.3292 | E197: 70.1582 | F197: 70.4156 | G197: 70.115 | H197: FPP Priority Unit 2 | I197: 3.4308
A198: 2013-07-30 | B198: 4.125 | C198: 67.1576 | D198: 70.4156 | E198: 70.2014 | F198: 70.502 | G198: 70.2014 | H198: FPP Priority Unit 2 | I198: 3.3444
A199: 2013-07-30 | B199: 4.166666667 | C199: 67.028 | D199: 70.2014 | E199: 69.9854 | F199: 70.3724 | G199: 69.9854 | H199: FPP Priority Unit 2 | I199: 3.3444
A200: 2013-07-30 | B200: 4.208333333 | C200: 67.199 | D200: 70.286 | E200: 70.2014 | F200: 70.5434 | G200: 70.0718 | H200: FPP Priority Unit 2 | I200: 3.3444
... 1089 more rows
